bitfinex/quotes_ETHUSD_20250114
["timestamp","ask_amount","ask_price","bid_price","bid_amount"]
[1736883859117,0.7834,3237.4,3237.1,3.22338742]
[1736883859422,0.05501113,3237.3,3237.1,3.22338742]
[1736883859799,0.05501113,3237.3,3236.7,3.22338742]
[1736883860007,0.7834,3237.2,3236.7,3.22338742]
[1736883860333,0.09343227,3237.1,3236.6,0.2496]
[1736883860624,0.05481355,3237.1,3236.6,0.2496]
[1736883861421,0.44754291,3237.1,3236.6,0.2496]
[1736883862402,0.7834,3236.9,3236.6,0.2496]
[1736883862614,0.181,3236.8,3236.6,0.2496]
[1736883862818,0.23525375,3236.8,3236.6,0.2496]
[1736883866496,0.05425375,3236.8,3236.7,3.08956]
[1736883866720,0.05425375,3236.8,3236.7,3.499376]
[1736883866919,0.7834,3237.5,3236.8,3.08947]
[1736883867232,0.7834,3237.8,3237.2,2.90770698]
[1736883867405,0.05047932,3237.7,3237.3,0.5996827]
[1736883867611,0.7834,3237.8,3237.5,3.08877]
[1736883867810,0.05054102,3237.7,3237.5,3.08877]
[1736883868030,0.9654,3238.0,3237.5,3.08877]
[1736883868328,0.05079993,3237.6,3237.5,3.08877]
[1736883868537,0.9654,3238.0,3237.5,3.08877]
[1736883868923,0.05087907,3237.9,3237.5,3.08877]
[1736883869536,0.05087907,3237.9,3237.3,0.5996827]
[1736883869832,0.05087907,3237.9,3237.1,6.31250742]
[1736883870053,0.05087907,3237.9,3237.1,3.22338742]
[1736883870630,0.05087907,3237.9,3237.0,3.22338742]
[1736883870838,0.55,3237.6,3237.0,3.22338742]
[1736883870994,0.55,3237.4,3237.0,3.22338742]
[1736883871308,0.7834,3237.5,3237.0,3.22338742]
[1736883871627,0.05136289,3237.4,3236.8,3.08946]
[1736883872208,0.05136289,3237.4,3236.6,9.4703144]
[1736883872424,0.05136289,3237.4,3236.6,6.56260742]
[1736883872604,0.74370918,3237.4,3236.6,3.47298742]
[1736883872815,0.74370918,3237.4,3236.6,0.2496]
[1736883872816,3.8725,3237.2,3236.6,0.2496]
[1736883873013,3.8725,3237.2,3236.7,0.28809719]
[1736883873224,0.55,3237.1,3236.7,0.28809719]
[1736883873442,0.60118143,3237.1,3236.7,0.28809719]
[1736883873656,0.44736814,3237.0,3236.7,0.28809719]
[1736883873817,0.23299601,3236.9,3236.7,0.28809719]
[1736883874850,0.182,3236.9,3236.6,0.2496]
[1736883875160,0.05086182,3236.8,3236.6,0.2496]
[1736883875306,0.7834,3236.7,3236.6,0.2496]
[1736883875647,0.834224,3236.7,3236.6,0.2496]
[1736883879726,1.2447844,3236.7,3236.6,0.2496]
[1736883879931,4.473784,3236.7,3236.6,0.2496]
[1736883880169,7.5124093,3236.7,3236.6,0.2496]
[1736883880466,7.473784,3236.7,3236.6,0.2496]
[1736883882347,4.568224,3236.7,3236.6,0.2496]
[1736883884576,4.384224,3236.7,3236.6,0.2496]
[1736883884763,5.3155954,3236.7,3236.6,0.2496]
[1736883886720,8.4051554,3236.7,3236.6,0.2496]
[1736883887467,8.4051554,3236.7,3236.6,1e-05]
[1736883887811,8.43934177,3236.7,3236.6,1e-05]
[1736883900549,0.26901037,3236.7,3236.6,1e-05]
[1736883901042,4.71469886,3236.7,3236.6,1e-05]
[1736883901185,4.67607037,3236.7,3236.6,1e-05]
[1736883901389,4.71470028,3236.7,3236.6,1e-05]
[1736883904198,5.1272873,3236.7,3236.6,1e-05]
[1736883904408,9.53078673,3236.7,3236.6,1e-05]
[1736883904596,9.49215682,3236.7,3236.6,1e-05]
[1736883905124,9.49215682,3236.7,3235.2,0.8021]
[1736883905125,3.64072,3235.5,3234.5,3.89372]
[1736883905338,0.55,3235.3,3234.5,0.8021]
[1736883905485,0.03863984,3235.2,3234.5,1.4822647]
[1736883905685,0.59690703,3235.1,3234.5,4.5739047]
[1736883905885,0.55,3235.1,3234.5,3.89374]
[1736883906188,0.55,3234.9,3234.5,3.89374]
[1736883906621,0.04642253,3234.8,3234.5,3.89374]
[1736883907028,0.55,3235.2,3234.5,3.89374]
[1736883907188,0.03864166,3235.1,3234.5,0.8021]
[1736883907544,0.55,3235.0,3234.1,0.8021]
[1736883907737,0.55,3234.7,3234.1,0.8021]
[1736883908028,0.55,3234.5,3233.8,0.8021]
[1736883908185,0.55,3234.3,3233.8,0.8021]
[1736883908626,0.55,3234.1,3233.8,0.8021]
[1736883908890,0.55,3233.9,3233.8,0.8021]
[1736883909033,0.184,3234.4,3233.8,0.8021]
[1736883909236,0.5954629,3234.3,3233.8,0.8021]
[1736883910393,0.55,3234.1,3233.5,0.8021]
[1736883910682,0.55,3234.1,3233.3,3.0928]
[1736883910683,0.04517291,3234.0,3233.2,0.8021]
[1736883910855,0.55,3233.9,3233.2,3.89499]
[1736883911051,0.55,3233.7,3233.2,3.89499]
[1736883911369,0.55,3233.5,3233.2,0.8021]
[1736883911572,0.732,3233.5,3233.2,0.8021]
[1736883911774,0.55,3233.3,3233.2,0.8021]
[1736883912079,0.55,3233.3,3232.6,2.90770698]
[1736883912080,0.59469617,3233.3,3232.9,0.8021]
[1736883912251,0.55,3233.3,3232.9,3.89522]
[1736883912438,0.0442051,3233.2,3232.9,3.89522]
[1736883912656,0.732,3233.5,3232.9,0.8021]
[1736883912960,0.59428128,3233.4,3232.9,0.8021]
[1736883913166,0.55,3233.2,3232.4,3.8021]
[1736883913610,0.04392608,3233.1,3232.4,3.8021]
[1736883914497,0.04392608,3233.1,3232.4,6.89576]
[1736883914696,0.04392608,3233.1,3232.4,3.8021]
[1736883914993,0.04392608,3233.1,3232.7,3.09337]
[1736883915169,0.04392608,3233.1,3232.6,3.0934]
[1736883915573,0.04392608,3233.1,3232.4,3.8021]
[1736883915787,0.04392608,3233.1,3233.0,3.8952]
[1736883916331,0.182,3233.7,3232.4,3.0]
[1736883916332,5.35866079,3233.6,3232.4,3.0]
[1736883916610,0.55,3233.4,3232.5,0.7872]
[1736883916778,3.55,3233.2,3232.5,0.7872]
[1736883917100,3.55,3233.2,3232.4,3.0]
[1736883917101,0.03866974,3233.1,3232.4,3.0]
[1736883917255,3.55,3233.0,3232.4,3.0]
[1736883917459,0.55,3232.8,3232.4,3.0]
[1736883917659,0.55,3232.6,3232.4,3.0]
[1736883917885,0.59314672,3232.5,3232.4,3.0]
[1736883921339,0.04314672,3232.5,3232.4,6.85897]
[1736883921510,0.04314672,3232.5,3232.4,7.468345]
[1736883921707,0.55,3232.7,3232.6,3.09348]
[1736883921940,5.32,3233.0,3232.6,2.90770698]
[1736883922239,0.182,3233.1,3232.7,3.09331]
[1736883922795,0.55,3233.0,3232.7,3.09331]
[1736883923197,0.55,3233.0,3232.4,3.7653]
[1736883923621,0.55,3232.8,3232.4,3.0]
[1736883924138,1.297051,3232.8,3232.4,3.0]
[1736883924736,0.182,3233.1,3232.4,3.0]
[1736883925294,0.8274,3233.3,3232.5,0.7653]
[1736883925515,0.182,3233.2,3232.7,3.09331]
[1736883926143,0.55,3233.0,3232.7,3.09331]
[1736883926531,0.55,3233.4,3232.7,3.09331]
[1736883926730,0.55406608,3233.5,3232.5,0.7653]
[1736883926900,0.182,3233.4,3232.6,3.28423698]
[1736883927097,0.182,3233.3,3233.2,3.0929]
[1736883927344,0.182,3233.3,3233.2,0.7653]
[1736883927548,0.732,3233.3,3233.2,0.7653]
[1736883927958,0.77529932,3233.3,3233.2,0.7653]
[1736883928334,0.59329932,3233.3,3233.2,0.7653]
[1736883928534,0.55,3233.2,3232.9,0.7653]
[1736883928761,0.55,3233.2,3232.9,3.85846]
[1736883928941,0.55,3233.5,3232.9,3.85846]
[1736883929363,0.55,3233.3,3232.9,3.85846]
[1736883929863,0.04186139,3233.2,3232.9,0.7653]
[1736883930270,0.55,3233.3,3232.9,0.7653]
[1736883930427,0.55,3233.0,3232.9,0.7653]
[1736883930628,0.55,3233.2,3232.5,0.7653]
[1736883930858,0.04191733,3233.0,3232.5,0.7653]
[1736883931069,0.55,3233.0,3232.5,1.451188]
[1736883931422,0.04178298,3232.9,3232.7,3.09332]
[1736883931568,0.55,3232.8,3232.7,3.09332]
[1736883931753,0.55,3233.3,3232.7,3.09332]
[1736883932136,0.55,3233.1,3232.7,3.09332]
[1736883932569,0.55,3232.9,3232.7,3.09332]
[1736883932947,0.55,3233.3,3232.7,3.09332]
[1736883933147,0.59181226,3232.8,3232.7,3.09332]
[1736883933390,0.55,3232.8,3232.7,3.09332]
[1736883936489,3.09195,3234.2,3232.7,3.09332]
[1736883936490,0.182,3233.7,3233.4,0.7653]
[1736883936852,0.55,3233.5,3233.4,0.7653]
[1736883937052,0.59179151,3233.5,3233.4,0.7653]
[1736883937255,0.04179151,3233.5,3233.4,3.85801]
[1736883937567,0.182,3233.9,3233.4,3.85801]
[1736883937765,0.8274,3234.2,3233.4,0.7653]
[1736883937969,0.04218664,3233.8,3233.7,3.09242]
[1736883938169,0.182,3234.1,3233.7,3.09242]
[1736883938488,0.04223304,3234.0,3233.7,3.09242]
[1736883938675,0.04223304,3234.0,3233.4,1.151101]
[1736883938676,0.55,3233.9,3233.4,1.151101]
[1736883938940,0.55,3234.0,3233.5,3.09253]
[1736883939253,0.04239603,3233.9,3233.5,3.09253]
[1736883941496,0.04239603,3233.9,3233.4,0.7653]
[1736883942599,0.04239603,3233.9,3232.7,0.385862]
[1736883942600,0.55,3233.7,3233.1,3.85826]
[1736883943306,0.55,3233.5,3233.1,3.85826]
[1736883943670,0.04214723,3233.4,3233.1,3.85826]
[1736883943918,0.8274,3233.8,3233.1,3.85826]
[1736883944073,0.63088521,3233.7,3233.1,0.7653]
[1736883944407,0.59222658,3233.7,3232.9,3.09315]
[1736883944706,1.04341524,3233.7,3233.0,3.09303]
[1736883945001,0.59222658,3233.7,3233.0,0.28788978]
[1736883945401,0.59222658,3233.7,3233.2,3.09287]
[1736883945902,0.59222658,3233.7,3233.0,3.38097978]
[1736883946082,0.59222658,3233.7,3233.0,3.09309]
[1736883946809,0.55,3233.5,3232.7,3.09336]
[1736883947012,0.55,3233.3,3232.7,3.09336]
[1736883947219,0.55,3233.3,3232.8,3.09327]
[1736883947437,0.04232615,3233.2,3233.0,3.09309]
[1736883947736,0.55,3233.7,3232.7,2.90770698]
[1736883947913,0.55,3233.7,3232.8,3.09325]
[1736883948121,0.55,3233.5,3232.8,3.09325]
[1736883948315,0.55,3233.3,3232.6,3.09348]
[1736883948625,0.55,3233.1,3233.0,3.09307]
[1736883948934,0.55,3233.7,3233.0,3.09307]
[1736883949089,0.55,3233.5,3233.0,3.09307]
[1736883949441,0.55,3233.3,3233.0,3.09307]
[1736883949810,0.55,3233.1,3233.0,3.09307]
[1736883950135,0.55,3233.1,3232.6,3.09348]
[1736883950136,0.55,3233.7,3232.6,3.09348]
[1736883950434,0.55,3233.5,3232.6,3.09348]
[1736883950622,0.55,3233.5,3233.1,3.093]
[1736883950819,0.55,3233.3,3233.1,3.8933]
[1736883951026,0.55,3233.3,3233.1,0.8003]
[1736883951323,0.183,3233.6,3233.4,3.0927]
[1736883951509,0.55,3233.5,3233.4,3.0927]
[1736883951835,0.8006,3234.4,3233.7,3.0924]
[1736883952038,0.221652,3234.3,3233.5,3.8929]
[1736883952337,0.55,3234.1,3233.3,3.09279]
[1736883952638,0.55,3234.1,3233.2,0.8003]
[1736883952639,0.55,3233.9,3233.2,0.8003]
[1736883953725,0.55,3233.9,3233.3,3.09279]
[1736883955490,0.55,3233.9,3233.3,0.389309]
[1736883955696,0.9836,3234.3,3233.4,3.0927]
[1736883956145,0.55,3234.2,3233.4,3.0927]
[1736883956305,3.55,3234.2,3233.2,0.8003]
[1736883956511,3.55,3234.2,3233.3,3.0928]
[1736883956807,0.55,3234.2,3233.4,3.09269]
[1736883957342,3.55,3234.2,3233.2,3.89314]
[1736883957645,0.55,3234.0,3233.3,3.09281]
[1736883957852,0.55,3233.8,3232.9,3.89348]
[1736883958032,0.55,3233.8,3232.9,0.8003]
[1736883958239,0.55,3233.8,3233.1,3.093]
[1736883958553,0.55,3233.8,3233.1,2.90770698]
[1736883958761,5.32,3234.0,3233.6,3.09245]
[1736883959068,5.32,3234.0,3233.7,3.09241]
[1736883959554,0.55,3233.9,3233.3,3.09277]
[1736883959724,0.9836,3234.2,3233.6,3.09243]
[1736883959919,0.55,3234.1,3233.6,3.09243]
[1736883960316,0.9836,3234.2,3233.6,3.09243]
[1736883960719,0.55,3234.1,3233.7,3.09242]
[1736883960923,0.733,3234.1,3233.7,3.09242]
[1736883961835,0.733,3234.1,3233.2,0.8003]
[1736883962035,4.383,3233.9,3233.0,3.21951551]
[1736883962210,2.13423594,3233.9,3233.4,3.0927]
[1736883962405,1.383,3233.9,3233.0,2.90770698]
[1736883962657,0.183,3234.0,3233.5,3.86681]
[1736883962857,0.04263843,3233.8,3233.5,3.86681]
[1736883963012,0.55,3233.8,3233.5,3.86681]
[1736883963545,0.55,3233.9,3233.7,3.09235]
[1736883964169,0.55,3233.9,3233.5,3.86678]
[1736883964335,0.55,3233.9,3233.5,3.09258]
[1736883964516,0.55,3233.7,3233.2,3.09281]
[1736883964720,0.55,3233.7,3232.9,0.7742]
[1736883964721,0.55,3233.7,3233.0,3.09302]
[1736883965358,0.55,3233.7,3233.1,3.09298]
[1736883966125,0.55,3233.7,3232.9,0.7742]
[1736883966319,3.55,3233.7,3232.8,3.09324]
[1736883966540,0.747535,3233.6,3232.8,3.09324]
[1736883966829,0.55,3233.5,3232.7,2.90770698]
[1736883967024,0.55,3233.5,3233.0,3.09309]
[1736883967362,0.833,3233.8,3233.1,0.7742]
[1736883967523,0.833,3233.8,3233.2,3.09291]
[1736883967728,0.183,3234.0,3233.1,3.86718]
[1736883967923,0.55,3233.9,3233.3,3.09272]
[1736883968429,0.55,3233.9,3233.1,0.7742]
[1736883968430,0.55,3233.9,3233.1,3.8672]
[1736883969224,0.55,3233.9,3233.2,3.09288]
[1736883971735,0.833,3233.8,3232.9,3.99371551]
[1736883972045,0.55,3233.7,3233.2,3.09288]
[1736883972250,0.55,3233.7,3233.4,3.09271]
[1736883972981,0.55,3233.5,3233.4,3.09271]
[1736883973392,0.55,3233.7,3233.4,3.09271]
[1736883973798,0.833,3233.8,3233.4,3.09271]
[1736883973799,0.04236082,3233.6,3233.4,3.09271]
[1736883974299,0.833,3233.8,3233.2,0.6000587]
[1736883974300,0.833,3233.8,3233.2,3.6928887]
[1736883974864,0.04240775,3233.7,3233.3,3.0928]
[1736883975285,0.833,3233.8,3233.3,3.0928]
[1736883975494,0.04240177,3233.6,3233.2,0.6000587]
[1736883975663,0.04242822,3233.7,3233.1,3.09299]
[1736883975869,0.55,3233.7,3233.1,3.09299]
[1736883976266,0.55,3233.7,3232.9,3.99371551]
[1736883976481,0.7064,3233.7,3233.0,3.09308]
[1736883976803,0.55,3233.5,3232.7,6.31287551]
[1736883977096,0.55,3233.3,3232.7,3.21951551]
[1736883977284,0.55,3233.3,3232.6,3.21951551]
[1736883977595,0.04227781,3233.2,3233.0,3.09306]
[1736883977900,0.04227781,3233.2,3233.1,6.00070698]
[1736883978195,0.181,3233.9,3233.6,3.09249]
[1736883978395,0.181,3233.9,3233.1,2.93752769]
[1736883978396,0.181,3233.9,3233.4,3.09271]
[1736883978565,0.181,3233.9,3233.3,3.09278]
[1736883978566,0.04217183,3233.8,3233.3,3.09278]
[1736883978754,0.55,3233.7,3233.4,0.309278]
[1736883979083,0.55,3233.8,3233.4,0.309278]
[1736883979598,0.7904,3234.0,3233.4,0.309278]
[1736883979599,0.04216303,3233.7,3233.4,0.309278]
[1736883979768,0.04216303,3233.7,3233.4,3.401978]
[1736883979969,0.55,3233.9,3233.4,3.401978]
[1736883980191,0.55,3233.5,3233.4,3.401978]
[1736883980399,0.55,3233.9,3233.4,3.401978]
[1736883980701,0.55,3233.9,3233.1,6.12722249]
[1736883980702,0.04211525,3233.5,3233.2,3.21951551]
[1736883980866,0.55,3233.6,3233.2,3.21951551]
[1736883981205,0.55,3233.1,3233.0,3.21951551]
[1736883981358,0.731,3233.1,3232.7,3.21951551]
[1736883981561,0.77339099,3233.1,3232.7,3.21951551]
[1736883981762,0.731,3233.1,3232.5,3.0935]
[1736883981956,0.55,3232.9,3232.5,3.0935]
[1736883982191,0.55,3232.9,3232.4,9.31316551]
[1736883982390,0.55,3232.9,3232.4,6.09365]
[1736883982391,0.55,3232.7,3232.4,6.09365]
[1736883982905,0.55,3232.5,3232.4,3.0]
[1736883983107,0.55,3232.8,3232.4,3.0]
[1736883983330,0.58867113,3232.8,3232.4,3.0]
[1736883983532,0.55,3232.6,3232.4,3.0]
[1736883983869,0.59196713,3232.5,3232.4,3.0]
[1736883988321,4.39726713,3232.5,3232.4,3.0]
[1736883988829,1.39726713,3232.5,3232.4,3.0]
[1736883989317,4.49084713,3232.5,3232.4,3.0]
[1736883989619,1.57826713,3232.5,3232.4,3.0]
[1736883989990,0.04196713,3232.5,3232.4,3.0]
[1736883990424,0.181,3232.8,3232.4,3.0]
[1736883990602,0.0411285,3232.5,3232.4,3.0]
[1736883990919,0.55,3232.7,3232.4,3.0]
[1736883991103,0.0411285,3232.5,3232.4,3.3]
[1736883991310,0.8053,3233.3,3232.5,3.09354]
[1736883991506,0.8053,3233.3,3232.9,6.00081698]
[1736883991820,0.8053,3234.2,3233.3,3.09272]
[1736883991975,0.181,3234.1,3233.4,3.09266]
[1736883992425,0.57963,3234.1,3233.3,0.7841]
[1736883992777,0.04133425,3234.0,3233.3,0.7841]
[1736883993319,0.04133425,3234.0,3233.0,0.7841]
[1736883993526,0.55,3233.6,3232.7,0.7841]
[1736883993721,0.55,3233.4,3232.6,3.09347]
[1736883994020,0.55,3233.2,3232.6,4.13317855]
[1736883994407,0.55,3233.0,3232.6,4.13317855]
[1736883994609,0.55,3233.0,3232.4,7.17774]
[1736883994793,0.55,3232.8,3232.4,3.0]
[1736883994994,3.6433,3232.8,3232.4,3.0]
[1736883995208,0.55,3232.6,3232.4,3.0]
[1736883995632,0.59022698,3232.5,3232.4,3.0]
[1736883999278,1.25858868,3232.5,3232.4,3.0]
[1736883999443,2.06388868,3232.5,3232.4,3.0]
[1736884001155,7.48910698,3232.5,3232.4,3.0]
[1736884001651,4.39552698,3232.5,3232.4,3.0]
[1736884002158,3.59022698,3232.5,3232.4,3.0]
[1736884004729,7.48910698,3232.5,3232.4,3.0]
[1736884005817,12.80910698,3232.5,3232.4,3.0]
[1736884006061,14.38078838,3232.5,3232.4,3.0]
[1736884009268,9.34852698,3232.5,3232.4,3.0]
[1736884009869,9.16552698,3232.5,3232.4,3.0]
[1736884010078,5.36022698,3232.5,3232.4,3.0]
[1736884010734,0.04022698,3232.5,3232.4,6.09367]
[1736884010929,0.183,3232.8,3232.4,6.09367]
[1736884011132,0.03641171,3232.7,3232.4,6.70602133]
[1736884011329,0.55,3232.7,3232.4,6.70602133]
[1736884011633,0.55,3232.5,3232.4,3.61235133]
[1736884011834,0.55,3232.5,3232.4,3.0]
[1736884012029,0.58633999,3232.5,3232.4,3.0]
[1736884014993,6.67991999,3232.5,3232.4,3.0]
[1736884015790,3.58633999,3232.5,3232.4,3.0]
[1736884017576,3.76933999,3232.5,3232.4,3.0]
[1736884019303,7.23985399,3232.5,3232.4,3.0]
[1736884020759,12.55985399,3232.5,3232.4,3.0]
[1736884021297,9.08933999,3232.5,3232.4,3.0]
[1736884021841,5.35633999,3232.5,3232.4,3.0]
[1736884022023,0.03633999,3232.5,3232.4,6.90097]
[1736884022363,5.32,3233.3,3232.9,0.8073]
[1736884022562,0.03391656,3233.2,3232.9,0.8073]
[1736884022761,3.7824,3233.9,3232.9,0.8073]
[1736884022762,0.183,3234.0,3233.3,3.09278]
[1736884022961,0.03392514,3233.9,3233.6,6.00022698]
[1736884023175,0.183,3234.1,3233.4,3.09267]
[1736884023410,0.03285338,3234.0,3233.4,3.09267]
[1736884024368,0.03285338,3234.0,3233.2,0.8073]
[1736884024567,0.55,3233.9,3233.2,0.8073]
[1736884024797,0.033497,3233.8,3233.3,0.02982121]
[1736884025113,0.033497,3233.8,3233.4,3.0927]
[1736884025296,0.55,3234.0,3233.4,3.0927]
[1736884025506,0.55,3233.6,3233.4,3.0927]
[1736884025713,3.09244,3233.7,3232.9,0.8073]
[1736884025928,0.03303396,3233.5,3233.2,3.09289]
[1736884026112,0.03314603,3233.6,3233.1,0.8073]
[1736884026315,0.183,3234.1,3233.3,3.09272]
[1736884026491,0.55,3234.0,3233.1,3.90027]
[1736884026854,5.87,3233.6,3232.7,0.8073]
[1736884026996,5.87,3233.6,3232.7,1.197383]
[1736884027207,0.55,3233.4,3232.7,4.290693]
[1736884027586,0.55,3233.2,3232.7,4.290693]
[1736884027789,0.55,3233.0,3232.7,4.290693]
[1736884028130,0.55,3233.5,3232.7,4.290693]
[1736884028333,1.21524,3233.5,3232.7,3.90061]
[1736884028538,0.55,3233.3,3232.7,0.8073]
[1736884028891,0.55,3233.1,3232.7,3.90064]
[1736884029087,0.55,3233.1,3232.8,3.09327]
[1736884029333,0.55,3232.9,3232.8,3.09327]
[1736884029628,0.55,3233.1,3232.8,3.09327]
[1736884029830,0.55,3233.1,3232.9,3.09319]
[1736884031085,0.55,3233.1,3233.0,3.0931]
[1736884031327,0.55,3233.5,3233.1,3.09291]
[1736884031530,0.55,3233.5,3232.8,0.390057]
[1736884031737,0.03239756,3233.4,3232.9,3.0931]
[1736884031903,0.55,3233.3,3233.0,0.3483157]
[1736884032090,0.55,3233.3,3232.7,0.8073]
[1736884032431,0.55,3233.1,3232.7,3.90064]
[1736884032788,0.55,3233.5,3232.7,3.90064]
[1736884032997,0.55,3233.3,3232.7,3.90064]
[1736884033212,0.55,3233.3,3232.7,0.8073]
[1736884033413,0.55,3233.1,3232.7,0.8073]
[1736884033626,0.55,3233.1,3232.8,3.09327]
[1736884033940,5.504,3233.6,3232.8,3.09327]
[1736884034094,0.55,3233.4,3232.8,3.09327]
[1736884034532,0.03317278,3233.3,3232.8,3.53109718]
[1736884034695,0.03317278,3233.3,3233.2,3.09291]
[1736884034895,5.32,3233.6,3233.2,3.09291]
[1736884035212,0.55,3233.5,3233.2,3.09291]
[1736884035413,0.58337947,3233.5,3233.2,3.09291]
[1736884036109,0.58337947,3233.5,3233.0,3.09308]
[1736884038343,0.03337947,3233.5,3233.4,3.09271]
[1736884038840,0.184,3234.5,3233.9,3.09216]
[1736884039038,3.184,3234.6,3234.0,3.09211]
[1736884039203,0.03240794,3234.4,3234.0,3.09211]
[1736884039537,0.03013993,3234.5,3234.0,3.09211]
[1736884039737,0.03008706,3234.3,3234.0,3.09211]
[1736884039945,0.0301135,3234.4,3233.8,3.0923]
[1736884040306,3.0,3234.6,3233.8,3.0923]
[1736884040520,0.03012237,3234.3,3233.8,3.0923]
[1736884040718,4.237909,3234.6,3233.8,3.0923]
[1736884040917,0.03009593,3234.2,3233.8,3.0923]
[1736884041117,0.55,3234.5,3233.8,3.0923]
[1736884041317,0.03010479,3234.1,3233.5,0.8294]
[1736884041529,0.55,3233.9,3233.5,0.8294]
[1736884041728,0.55,3233.9,3233.2,3.09287]
[1736884041931,0.02996172,3233.8,3233.2,3.09287]
[1736884042145,0.02996172,3233.8,3233.1,4.36049718]
[1736884042341,0.02996172,3233.8,3233.6,3.09247]
[1736884042541,0.02996172,3233.8,3233.7,3.09243]
[1736884042754,5.32,3234.1,3233.8,3.09224]
[1736884043245,0.57995822,3234.0,3233.8,3.09224]
[1736884046148,0.57995822,3234.0,3233.6,3.09247]
[1736884046450,0.57995822,3234.0,3233.2,2.91345551]
[1736884046655,0.55,3233.8,3233.2,6.83573551]
[1736884046811,0.55,3233.8,3233.2,4.54289998]
[1736884047138,0.55,3233.8,3233.4,3.0927]
[1736884047332,0.02987746,3233.7,3233.4,3.0927]
[1736884047654,0.55,3233.8,3233.2,4.72232447]
[1736884047826,0.55,3233.8,3233.3,3.09275]
[1736884048023,0.0298836,3233.7,3233.3,3.09275]
[1736884048443,0.55,3233.8,3233.3,3.09275]
[1736884048648,0.02987229,3233.6,3233.3,3.09275]
[1736884048830,0.55,3233.8,3233.3,3.09275]
[1736884049261,0.02995324,3233.7,3233.3,3.09275]
[1736884049467,0.55,3233.8,3233.2,0.8294]
[1736884049636,0.0299268,3233.6,3233.4,3.09269]
[1736884050162,0.55,3233.8,3233.4,3.09269]
[1736884050522,0.02995324,3233.7,3233.4,3.09269]
[1736884050929,0.55,3233.8,3233.4,3.09269]
[1736884051123,0.55,3233.8,3233.2,1.32015647]
[1736884051124,5.87,3233.8,3232.7,6.00676551]
[1736884051334,0.55,3233.6,3232.9,3.09311]
[1736884051731,0.02976996,3233.5,3233.1,3.09299]
[1736884051948,0.02976996,3233.5,3233.0,2.91345551]
[1736884052264,0.02976996,3233.5,3233.4,3.92211]
[1736884052435,9.96e-06,3233.5,3233.4,6.95191871]
[1736884052626,3.86e-06,3233.5,3233.4,7.90864742]
[1736884052822,0.55,3234.7,3233.5,3.0]
[1736884053149,0.55,3234.7,3233.4,10.82210293]
[1736884053150,0.55,3234.5,3233.8,3.09231]
[1736884053725,0.55,3234.5,3233.6,3.09249]
[1736884053930,0.55,3234.3,3233.6,3.09249]
[1736884054246,3.0,3234.7,3233.6,3.09249]
[1736884054558,5.32,3234.7,3233.6,3.09249]
[1736884055247,5.32,3234.7,3233.4,0.8294]
[1736884055450,3.0,3234.6,3233.4,3.09271]
[1736884055656,3.05665202,3234.6,3233.2,3.09287]
[1736884055854,1.12901075,3234.5,3233.2,3.09287]
[1736884056073,3.0,3234.4,3233.2,3.09287]
[1736884056233,0.55,3233.9,3233.2,3.09287]
[1736884056439,0.183,3233.8,3233.2,3.09287]
[1736884056641,0.55,3233.7,3233.2,3.09287]
[1736884057162,0.55,3233.7,3233.1,0.8294]
[1736884057480,0.55,3233.7,3233.3,3.09281]
[1736884057677,0.55,3233.7,3233.2,0.37428555]
[1736884057884,0.55,3233.7,3233.2,3.0929]
[1736884059786,0.55,3233.7,3233.0,3.09306]
[1736884059989,0.55,3233.5,3232.8,3.92266]
[1736884060133,0.55,3233.5,3232.8,3.09326]
[1736884060338,0.02727121,3233.4,3232.8,3.09326]
[1736884062788,0.55,3233.5,3232.8,3.09326]
[1736884063091,0.55,3233.5,3232.8,3.402586]
[1736884063809,0.55,3233.5,3232.9,3.09317]
[1736884065669,5.87,3233.5,3232.9,3.09317]
[1736884067403,6.053,3233.5,3232.9,3.09317]
[1736884072106,5.32,3233.5,3233.4,3.09271]
[1736884072308,5.9032,3234.2,3233.6,3.09245]
[1736884072610,0.183,3234.1,3233.7,3.09243]
[1736884072791,5.32,3234.2,3233.8,0.03092315]
[1736884072994,0.5832,3234.5,3233.9,3.09215]
[1736884073364,0.5832,3234.5,3233.5,0.7516]
[1736884073571,0.5832,3234.5,3233.6,3.09252]
[1736884073572,0.55,3234.4,3233.6,3.09252]
[1736884073919,0.9964502,3234.4,3233.6,3.09252]
[1736884074218,3.64176,3234.4,3233.5,3.84419]
[1736884074420,0.55,3234.4,3233.5,3.84419]
[1736884075505,0.55,3234.4,3233.6,3.09252]
[1736884075801,0.55,3234.4,3233.7,3.09236]
[1736884076888,0.55,3234.4,3233.8,3.09226]
[1736884077085,0.55,3234.4,3233.5,0.7516]
[1736884077304,0.55,3234.4,3233.9,3.09222]
[1736884077974,0.55,3234.4,3233.7,3.09237]
[1736884078302,0.55,3234.2,3233.6,3.09252]
[1736884082595,1.137,3234.2,3233.2,3.96774012]
[1736884082781,0.55,3234.0,3233.3,3.0928]
[1736884083717,0.55,3233.8,3233.3,3.0928]
[1736884084334,0.55,3233.8,3232.9,0.7854]
[1736884084483,5.32,3233.9,3233.5,0.7854]
[1736884084690,5.32,3233.9,3233.8,3.09233]